Cogmind - Beta 17 @@@ ROGUE MODE // 2026.07.09 @ 15:37:18 Player: IsAway Result: Destroyed by S-27 Virus with Autogun Performance ------------- Evolutions (3) 1500 Regions Visited (8) 1600 Robots Destroyed (81) 405 Value Destroyed (2838) 2838 Prototype IDs (33) 660 Alien Tech Used (0) 0 Bonus (638) 638 TOTAL SCORE: 7641 Bonus ------- High Alert Combat Kills 303 Follower Combat Kills 35 Aligned with FarCom 300 Cogmind --------- Core Integrity 0/700 Matter 219/300 Energy 80/100 System Corruption 24% Temperature Cool (0) Movement Core (100) Ox1 Location -7/Lower Caves Parts ------- > --- POWER (1) -------- (None) > --- PROPULSION (5) --- (None) > --- UTILITY (5) ------ Advanced ECM Suite > --- WEAPON (2) ------- Makeshift Hammer > --- INVENTORY (5) ---- Improved Cooling System High-capacity Matter Pod (0) Latent Energy Streamer Peak State ------------ > --- POWER ------------ Light Angular Momentum Engine > --- PROPULSION ------- Light Treads Advanced Treads Advanced Treads Cooled Aerolev Unit Improved VTOL Module > --- UTILITY ---------- Small Storage Unit Improved Terrain Scan Processor Improved Targeting Computer Advanced Targeting Computer Drone Bay > --- WEAPON ----------- Flak Cannon Heavy Mace > --- INVENTORY -------- Improved VTOL Module Thermal Generator High-capacity Matter Pod Drone Bay Drone Bay Latent Energy Streamer Enhanced Autogun Advanced EMP Blaster [Rating: 45] Favorites ----------- Power Ion Engine Engine Ion Engine Power Core Nuclear Core Propulsion Light Treads Treads Light Treads Hover Unit Cooled Aerolev Unit Flight Unit Improved VTOL Module Utility Signal Interpreter Device Advanced ECM Suite Storage Medium Storage Unit Processor Signal Interpreter Hackware System Shield Protection Improved Light Armor Plating Weapon Particle Gun Energy Gun Particle Gun Energy Cannon Latent Energy Streamer Ballistic Gun Assault Rifle Ballistic Cannon Flak Cannon Launcher Improved Grenade Launcher Special Weapon Mining Laser Impact Weapon Heavy Mace Slashing Weapon Katana Build | -11 -10 -10 -10 -9 -8 -8 -7 -7 ------- Run | Yrd Mat Min Exi Min Mat Sto Fac Low Slots Evolved 6 | . . . . . 4 . 2 . Power . | . . . . . . . . . Propulsion 3 | . . . . . 2 . 1 . Utility 3 | . . . . . 2 . 1 . Weapon . | . . . . . . . . . Parts Attached 78 | 7 9 1 1 4 5 30 18 3 Power 7 | 1 1 . . 1 . 3 1 . Engine 5 | 1 1 . . 1 . 2 . . Core 2 | . . . . . . 1 1 . Reactor . | . . . . . . . . . Propulsion 21 | 2 1 . . 1 . 11 4 2 Treads 12 | 2 1 . . 1 . 8 . . Leg . | . . . . . . . . . Wheel . | . . . . . . . . . Hover 2 | . . . . . . 1 1 . Flight 7 | . . . . . . 2 3 2 Utility 26 | 2 2 1 . 2 2 8 9 . Device 10 | 1 . . . 1 1 3 4 . Storage 6 | 1 1 1 . . . 2 1 . Processor 5 | . 1 . . 1 . 1 2 . Hackware 2 | . . . . . . 1 1 . Protection 3 | . . . . . 1 1 1 . Artifact . | . . . . . . . . . Weapon 24 | 2 5 . 1 . 3 8 4 1 Energy Gun 5 | 1 1 . . . 1 2 . . Energy Cannon 4 | . . . 1 . 2 . 1 . Ballistic Gun 3 | 1 . . . . . 1 1 . Ballistic Cannon 2 | . 1 . . . . 1 . . Launcher 4 | . 1 . . . . 3 . . Special Weapon 3 | . 2 . . . . . 1 . Impact Weapon 2 | . . . . . . . 1 1 Slashing Weapon 1 | . . . . . . 1 . . Piercing Weapon . | . . . . . . . . . Special Melee Weapon . | . . . . . . . . . Unidentified Prototypes 8 | . . . . 1 . 7 . . Corrupted Parts 2 | . . . . . . 1 1 . System Corruption 13 | . . . . . . 8 5 . Parts Lost 22 | . . 1 . 2 1 10 5 3 Power 4 | . . . . 1 . 2 1 . Propulsion 8 | . . . . 1 1 1 2 3 Utility 5 | . . . . . . 4 1 . Weapon 5 | . . 1 . . . 3 1 . Highest Loss Streak 4 | . . 1 . 1 1 4 3 2 To Critical Strikes . | . . . . . . . . . Average Backups 7 | 3 9 9 9 5 4 5 7 3 Power . | . . . . . . . . . Propulsion . | 1 1 1 . . . . . . Utility 4 | . 5 7 6 3 2 2 4 2 Weapon 2 | 1 2 1 1 2 1 2 2 1 Tool/Special . | . . . . . . . . . Unused Backups 23 | 2 6 . 4 3 1 1 5 1 Power 2 | . . . . 1 . . 1 . Propulsion 4 | 2 2 . . . . . . . Utility 16 | . 3 . 4 2 1 1 4 1 Weapon 1 | . 1 . . . . . . . Tool/Special . | . . . . . . . . . Average Slot Usage (%) 87 | . 99 98 100 65 68 88 69 15 Engine 9 | . 14 14 14 8 9 6 2 . Treads 23 | . 27 28 28 24 17 29 7 . Flight 2 | . . . . . . . 13 4 Device 4 | . 4 . . 9 10 5 8 7 Storage 9 | . 14 14 14 5 . 4 6 . Processor 12 | . 9 14 14 13 9 16 12 . Protection 1 | . . . . . 7 3 1 . Energy Gun 5 | . 12 12 5 . 1 . . . Energy Cannon 1 | . . . 8 2 13 . . . Ballistic Gun 4 | . 1 14 14 2 . 4 . . Ballistic Cannon 1 | . 1 . . . . . 2 . Launcher 3 | . 4 . . . . 9 . . Special Weapon 2 | . 9 . . . . . . . Peak Build Rating 45 | 8 9 9 17 17 26 38 45 11 Average Rating 17 | 5 8 8 13 11 21 28 31 8 On Entrance 13 | . 7 9 9 17 13 25 38 5 Avg Prop Armor Cover (%) 11 | . . . . 16 . 15 5 . Naked Turns 17 | . . . . . . . 17 . Heaviest Build 80 | 15 21 20 27 80 27 28 29 3 Greatest Support 88 | 40 40 40 40 40 40 88 44 10 Greatest Overweight (x) 6 | . . . . 3 1 4 6 . Average Overweight (x) . | . . . . . . . . . Largest Inventory Capacity 25 | 8 10 25 25 25 5 8 8 5 Average Capacity 8 | 7 9 10 10 8 5 5 7 5 Most Carried 10 | 8 10 10 10 10 5 8 8 4 Average Carried 7 | 3 9 9 9 6 4 5 7 3 Final Capacity 10 | 8 10 10 10 5 5 8 5 5 Final Carried 10 | 6 10 10 10 5 5 8 4 3 Class Distribution -------------------- 86% | Mutant 6% | Sprinter 5% | Skirmisher Dominant Class ---------------- Mutant | -10/Materials Mutant | -10/Mines Mutant | -10/Exiles Mutant | -9/Mines Mutant | -8/Materials Mutant | -8/Storage Mutant | -7/Factory Mutant | -7/Lower Caves Resources | -11 -10 -10 -10 -9 -8 -8 -7 -7 ----------- Run | Yrd Mat Min Exi Min Mat Sto Fac Low Matter Collected 2254 | 282 286 99 40 59 . 1167 173 148 Remotely . | . . . . . . . . . Salvage Created 2456 | 109 552 59 . 104 . 1535 97 . Parts 146 | 10 42 6 . 2 . 78 8 . Haulers Intercepted 2 | . . . . . . 2 . . Recyclers Shooed 1 | . . . . . . . 1 . Parts Field Recycled . | . . . . . . . . . Retrieved Matter . | . . . . . . . . . Parts Self-Destructed 9 | . . . . . . . . 9 Prevented 1 | . . . . . . . . 1 Parts Restored . | . . . . . . . . . Kills | -11 -10 -10 -10 -9 -8 -8 -7 -7 ------- Run | Yrd Mat Min Exi Min Mat Sto Fac Low Combat Hostiles Destroyed 60 | . 16 4 . 4 . 34 2 . Melee 1 | . . . . . . . 1 . Guns 14 | . 6 4 . . . 3 1 . Cannons 4 | . 2 . . . . 2 . . AOE 41 | . 8 . . 4 . 29 . . Classes Destroyed 15 | 2 5 1 . 1 . 5 1 . Worker 6 | . 4 . . . . 2 . . Builder 4 | . 4 . . . . . . . Tunneler 2 | 2 . . . . . . . . Hauler 2 | . . . . . . 2 . . Recycler 1 | 1 . . . . . . . . Mechanic 3 | . . . . . . 3 . . Operator 1 | . 1 . . . . . . . Watcher 5 | . 3 . . . . 2 . . Swarmer 4 | . . 4 . . . . . . Grunt 37 | . 16 . . 1 . 20 . . Brawler 4 | . . . . . . 4 . . Duelist 2 | . . . . . . 2 . . Sentry 8 | . . . . . . 8 . . Programmer 2 | . . . . . . . 2 . Assembled 4 | . . . . 4 . . . . Best Kill Streak 11 | 3 6 2 . 2 . 11 1 . Combat Bots Only 8 | . 4 2 . 2 . 8 1 . Max Kills in Single Turn 4 | 1 3 1 . 2 . 4 1 . Gunslinging . | . . . . . . . . . Exploded 4 | . 2 . . 2 . 4 . . Melee 1 | . . . . . . . 1 . Uniques/NPCs Destroyed . | . . . . . . . . . Combat | -11 -10 -10 -10 -9 -8 -8 -7 -7 -------- Run | Yrd Mat Min Exi Min Mat Sto Fac Low Hostile Shots Fired 422 | . 45 29 . 55 20 141 86 46 Missed 121 | . 7 7 . 12 2 47 26 20 Hits 301 | . 38 22 . 43 18 94 60 26 Melee 9 | . . . . 7 . 2 . . Projectile 292 | . 38 22 . 36 18 92 60 26 Critical Strikes 13 | . . . . 1 . 6 6 . Damage Taken 4969 | . 468 169 . 669 275 1905 1058 425 Core 1202 | . 50 33 . 154 13 248 398 306 Absorbed by Shields . | . . . . . . . . . Ignored by Resistances 40 | . . . . . . 40 . . Regen/Repaired (Parts) 148 | . 78 . . . . 70 . . Core Remaining (%) 52 | 100 . . . 5 . 52 . . Volleys Fired 172 | 4 46 16 . 4 . 70 32 . Largest 2 | 2 2 2 . 2 . 2 2 . Hottest 165 | 60 165 85 . 80 . 96 69 . Shots Fired 255 | 8 83 18 . 7 . 106 33 . Gun 109 | 8 26 18 . 4 . 41 12 . Cannon 51 | . 22 . . 3 . 10 16 . Launcher 86 | . 28 . . . . 55 3 . Special 9 | . 7 . . . . . 2 . Kinetic 105 | 4 31 16 . 4 . 36 14 . Thermal 29 | . 23 2 . . . 4 . . Explosive 70 | . 28 . . . . 42 . . Electromagnetic 49 | 4 1 . . 3 . 24 17 . Robot Hit Streak 21 | 7 6 7 . 2 . 21 20 . Robot Miss Streak 4 | . 4 3 . 4 . 4 2 . Penetration Max . | . . . . . . . . . Secondary Targets . | . . . . . . . . . Shots Hit Robots 120 | 7 28 8 . 1 . 51 25 . Core Hits 160 | 4 46 4 . 21 . 78 7 . Critical Kills . | . . . . . . . . . Critical Parts Destroyed 1 | . . . . . . . 1 . Critical Strikes 5 | . 1 . . . . . 4 . Destroy 1 | . . . . . . . 1 . Blast 1 | . 1 . . . . . . . Corrupt 3 | . . . . . . . 3 . Melee Attacks . | . . . . . . . . . Impact . | . . . . . . . . . Slashing . | . . . . . . . . . Piercing . | . . . . . . . . . Sneak Attacks . | . . . . . . . . . Combat Hostiles . | . . . . . . . . . Follow-up Attacks . | . . . . . . . . . Damage Inflicted 5982 | 82 1534 104 . 345 . 3560 357 . Guns 849 | 82 204 102 . . . 319 142 . Cannons 429 | . 194 . . 5 . 128 102 . Explosions 4676 | . 1136 . . 336 . 3113 91 . Melee . | . . . . . . . . . Ramming 28 | . . 2 . 4 . . 22 . Kinetic 863 | 33 254 102 . . . 332 142 . Thermal 407 | . 144 . . . . 188 75 . Explosive 3560 | . 1136 . . . . 2424 . . Electromagnetic 1124 | 49 . . . 341 . 616 118 . Impact . | . . . . . . . . . Slashing . | . . . . . . . . . Piercing . | . . . . . . . . . Highest Corruption 24 | . . . . 5 . 15 24 24 Average Corruption 11 | . . . . 4 . 13 9 24 Corruption Purged . | . . . . . . . . . Corruption Blocked . | . . . . . . . . . Effects 82 | . . . . 5 . 43 21 13 Message Errors 30 | . . . . 3 . 20 5 2 Matter Fused 12 | . . . . . . 6 5 1 Heat Flow Errors 8 | . . . . 1 . 3 2 2 Energy Discharges 7 | . . . . . . 3 3 1 Parts Rejected 3 | . . . . . . 1 2 . Data Loss (minor) 7 | . . . . . . 5 1 1 Misfires 2 | . . . . . . 2 . . Alerts 2 | . . . . 1 . 1 . . Misdirections 8 | . . . . . . . 2 6 Weapon Failures 3 | . . . . . . 2 1 . Overload Shots . | . . . . . . . . . Overflow Damage 105 | . 27 . . . . 71 7 . Projectiles 7 | . . . . . . . 7 . Explosions 98 | . 27 . . . . 71 . . Melee . | . . . . . . . . . Knockbacks 5 | . 3 . . . . 2 . . Impact . | . . . . . . . . . Kinetic 5 | . 3 . . . . 2 . . Secondary . | . . . . . . . . . Self-Inflicted Damage 581 | . 19 . . 40 . 408 114 . Shots 21 | . 2 . . 2 . 13 4 . Rammed 34 | . . 1 . 1 . . 32 . Targets Rammed 34 | . . 1 . 1 . . 32 . Kicked . | . . . . . . . . . Crushed . | . . . . . . . . . Highest Temperature 271 | . 249 48 . 271 . 165 245 248 Average Temperature 63 | . 71 26 . 76 . 46 74 116 Received Heat Transfer 1431 | . 249 . . 120 162 765 9 126 Effects 2 | . 1 . . . . . . 1 Energy Bleed 2 | . 1 . . . . . . 1 Siege Activations . | . . . . . . . . . Martial Activations . | . . . . . . . . . Shielding Activations . | . . . . . . . . . Robots Disrupted . | . . . . . . . . . Combat Hostiles . | . . . . . . . . . Robots Corrupted . | . . . . . . . . . Combat Hostiles . | . . . . . . . . . Parts Fried 2 | . . . . . . . 2 . Impact Corruptions . | . . . . . . . . . Robots Melted . | . . . . . . . . . Combat Hostiles . | . . . . . . . . . Parts Melted 1 | . . . . . . 1 . . Heat Transferred 707 | . 333 . . . . 324 50 . Parts Sabotaged . | . . . . . . . . . Parts Stolen . | . . . . . . . . . Parts Stripped . | . . . . . . . . . Power Chain Reactions 8 | . . . . . . 6 2 . Latent Energy Used 150 | . . . . 150 . . . . LE Corruption 4 | . . . . 4 . . . . Alert | -11 -10 -10 -10 -9 -8 -8 -7 -7 ------- Run | Yrd Mat Min Exi Min Mat Sto Fac Low Maximum Alert Level 3 | . 1 . . . . 3 2 . Low Security (%) 56 | 100 57 100 . 100 100 3 59 . Level 1 30 | . 42 . . . . 41 36 . Level 2 8 | . . . . . . 35 4 . Level 3 4 | . . . . . . 19 . . Level 4 . | . . . . . . . . . Level 5 . | . . . . . . . . . High Security . | . . . . . . . . . Max Security . | . . . . . . . . . Peak Influence 955 | 10 354 120 . . 12 955 427 . Initial 427 | . . 17 . . . . 427 . Average 206 | 1 178 30 . . . 486 181 . Influence Increases 2785 | 15 658 242 . . 17 1531 142 180 Destroy 0b10 Robot/C 1220 | . 320 180 . . . 680 40 . Destroy 0b10 Robot/NC 120 | 15 60 . . . . 45 . . Destroy Leader 284 | . 66 30 . . . 168 20 . Allied During Kill 32 | . . 32 . . . . . . Successful Hack 76 | . 26 . . . 17 19 14 . Disable Machine 300 | . 75 . . . . 210 15 . Anti-Garrison Action 150 | . . . . . . 150 . . Destroy Structure 363 | . 111 . . . . 244 8 . Lose Combat Pursuer 240 | . . . . . . 15 45 180 Influence Decreases 2665 | 15 612 288 . . 17 592 1081 60 Entered New Map 541 | . . 29 . . . . 512 . Time Decay 1897 | 15 612 229 . . 7 492 502 40 Lost Part 190 | . . 10 . . 10 100 50 20 Lost Ally 37 | . . 20 . . . . 17 . Squads Dispatched 17 | . 4 . . . 1 7 5 . Investigation 7 | . 3 . . . 1 1 2 . Extermination 3 | . . . . . . . 3 . Reinforcement 3 | . 1 . . . . 2 . . Assault 3 | . . . . . . 3 . . Garrison 1 | . . . . . . 1 . . Intercept . | . . . . . . . . . Searches Triggered . | . . . . . . . . . Construction Impeded 1 | . . . . . . 1 . . Haulers Reinforced . | . . . . . . . . . Active Scanning Responses . | . . . . . . . . . Cargo Convoy Interrupts . | . . . . . . . . . Stealth | -11 -10 -10 -10 -9 -8 -8 -7 -7 --------- Run | Yrd Mat Min Exi Min Mat Sto Fac Low Distress Signals 4 | . 2 . . . . 2 . . Communications Jammed . | . . . . . . . . . Distress Signals . | . . . . . . . . . Times Spotted 121 | . 21 9 . 17 2 46 10 16 Peak Tracking Total 18 | . 4 3 . 18 2 7 5 7 Tactical Retreats 11 | . . . . 2 . 1 4 4 ECM-based Alert Blocks 4 | . . . . . . . 4 . Traps | -11 -10 -10 -10 -9 -8 -8 -7 -7 ------- Run | Yrd Mat Min Exi Min Mat Sto Fac Low Traps Triggered 4 | . 1 . . . . 3 . . Indirectly 1 | . . . . . . 1 . . Trap Hack Attempts . | . . . . . . . . . Triggered . | . . . . . . . . . Disarmed . | . . . . . . . . . Reprogrammed . | . . . . . . . . . Reused . | . . . . . . . . . Traps Extracted . | . . . . . . . . . Installed . | . . . . . . . . . Triggered . | . . . . . . . . . Machines | -11 -10 -10 -10 -9 -8 -8 -7 -7 ---------- Run | Yrd Mat Min Exi Min Mat Sto Fac Low Machines Disabled 21 | . 5 . . . . 15 1 . Max in Single Turn 2 | . 1 . . . . 2 1 . Garrison Access 2 | . . . . . . 1 1 . Machines Repaired . | . . . . . . . . . Machines Dismantled . | . . . . . . . . . Machines Sabotaged . | . . . . . . . . . Overloaded Fab Kills . | . . . . . . . . . Hacking | -11 -10 -10 -10 -9 -8 -8 -7 -7 --------- Run | Yrd Mat Min Exi Min Mat Sto Fac Low Machines Accessed 30 | . 9 . 1 1 2 7 10 . Terminals 16 | . 6 . . . 2 6 2 . Fabricators 3 | . . . . . . . 3 . Repair Stations 3 | . 1 . . . . 1 1 . Recycling Units 3 | . 2 . . . . . 1 . Scanalyzers 2 | . . . . . . . 2 . Garrison Access 1 | . . . . . . . 1 . Total Hacks 78 | . 35 . 1 1 6 15 20 . Successful 35 | . 16 . 1 1 2 5 10 . Failed 43 | . 19 . . . 4 10 10 . Catastrophic 8 | . 4 . . . 1 2 1 . Database Lockouts . | . . . . . . . . . Manual 18 | . 5 . 1 . . 7 5 . Terminals 44 | . 20 . . . 6 13 5 . Fabricators 6 | . . . . . . . 6 . Repair Stations 13 | . 8 . . . . 2 3 . Recycling Units 8 | . 7 . . . . . 1 . Scanalyzers 4 | . . . . . . . 4 . Garrison Access 1 | . . . . . . . 1 . Terminal Hacks 15 | . 5 . 1 1 2 3 3 . Record 4 | . . . . . 1 . 3 . Prototype ID Bank 1 | . 1 . . . . . . . Open Door 2 | . . . . 1 . 1 . . Level Access Points 1 | . . . . . . 1 . . Branch Access Points 1 | . . . . . . 1 . . Locate Traps 1 | . 1 . . . . . . . Dispatch Records 1 | . 1 . . . . . . . Recall Reinforcements 1 | . 1 . . . . . . . Zone Layout 2 | . 1 . . . 1 . . . Proto ID Catalog 1 | . . . 1 . . . . . Fabricator Hacks 2 | . . . . . . . 2 . Network Status 1 | . . . . . . . 1 . Build 1 | . . . . . . . 1 . Repair Station Hacks 10 | . 6 . . . . 2 2 . Scan Component 6 | . 3 . . . . 1 2 . Repair 3 | . 2 . . . . 1 . . Refit 1 | . 1 . . . . . . . Recycling Unit Hacks 6 | . 5 . . . . . 1 . Process 2 | . 2 . . . . . . . Report Inventory 2 | . 1 . . . . . 1 . Retrieve Matter 2 | . 2 . . . . . . . Scanalyzer 1 | . . . . . . . 1 . Insert Component 1 | . . . . . . . 1 . Garrison Access Hacks 1 | . . . . . . . 1 . Seal Access 1 | . . . . . . . 1 . Unauthorized Hacks . | . . . . . . . . . Terminals . | . . . . . . . . . Fabricators . | . . . . . . . . . Repair Stations . | . . . . . . . . . Recycling Units . | . . . . . . . . . Scanalyzers . | . . . . . . . . . Garrison Access . | . . . . . . . . . Data Cores Recovered . | . . . . . . . . . Used . | . . . . . . . . . Hacking Detections 22 | . 8 . . . 2 5 7 . Full Trace Events 8 | . 4 . . . 1 1 2 . Feedback Events 2 | . . . . . . 1 1 . Corruption 2 | . . . . . . 1 1 . Feedback Blocked . | . . . . . . . . . Robot Schematics Acquired . | . . . . . . . . . Robots Built . | . . . . . . . . . Authchips . | . . . . . . . . . Time . | . . . . . . . . . Total Robot Build Rating . | . . . . . . . . . Part Schematics Acquired . | . . . . . . . . . Parts Built 2 | . . . . . . . 2 . Authchips . | . . . . . . . . . Time 84 | . . . . . . . 84 . Total Part Build Rating 8 | . . . . . . . 8 . Part Studies Acquired . | . . . . . . . . . Parts Repaired 3 | . 2 . . . . 1 . . Time 90 | . 52 . . . . 38 . . Parts Recycled . | . . . . . . . . . Recycled Matter 272 | . 272 . . . . . . . Retrieved Matter 380 | . 380 . . . . . . . Retrieved Components . | . . . . . . . . . Parts Scanalyzed . | . . . . . . . . . Part Schematics Acquired . | . . . . . . . . . Parts Damaged . | . . . . . . . . . Bothacking | -11 -10 -10 -10 -9 -8 -8 -7 -7 ------------ Run | Yrd Mat Min Exi Min Mat Sto Fac Low Used RIF Installer . | . . . . . . . . . Robots Hacked 1 | . . . . . . . 1 . Non-combat . | . . . . . . . . . Combat 1 | . . . . . . . 1 . Robot Hacks Applied 1 | . . . . . . . 1 . parse_system 1 | . . . . . . . 1 . Relay Couplers Released 2 | . . . . . . 2 . . Machine Destruction 2 | . . . . . . 2 . . Fabnet Peak Effective % . | . . . . . . . . . Robots Rewired . | . . . . . . . . . Allies Hacked . | . . . . . . . . . Hacks Repelled . | . . . . . . . . . Allies | -11 -10 -10 -10 -9 -8 -8 -7 -7 -------- Run | Yrd Mat Min Exi Min Mat Sto Fac Low Total Allies 3 | . . 3 . . . . . . Largest Group 3 | . . 3 2 2 . . . . Highest-Rated Group 40 | . . 40 24 24 . . . . Highest-Rated Ally 16 | . . 16 16 16 . . . . Total Orders 8 | . . . 4 3 . . 1 . STAY 3 | . . . 2 . . . 1 . FOLLOW 2 | . . . 2 . . . . . RETURN 3 | . . . . 3 . . . . Ally Attacks 29 | . . 20 . 9 . . . . Total Damage 199 | . . 166 . 33 . . . . Kills 6 | . . 5 . 1 . . . . Allies Corrupted . | . . . . . . . . . Allies Melted . | . . . . . . . . . Intel | -11 -10 -10 -10 -9 -8 -8 -7 -7 ------- Run | Yrd Mat Min Exi Min Mat Sto Fac Low Active Infowar (turns) 1094 | 45 576 . . . 29 384 59 1 Terrain 413 | . . . . . 29 384 . . Seismic 621 | 45 576 . . . . . . . ECM 60 | . . . . . . . 59 1 Robot Analysis Total . | . . . . . . . . . Derelict Logs Recovered 4 | . . 2 . 1 . . . 1 Drone Launches 9 | . . . . 6 . . 3 . Drone Recoveries 7 | . . . . 6 . . 1 . Exploration | -11 -10 -10 -10 -9 -8 -8 -7 -7 ------------- Run | Yrd Mat Min Exi Min Mat Sto Fac Low Turns Passed 7369 | 117 2019 842 966 304 248 1340 1373 160 Spaces Moved 4527 | 57 1015 428 596 162 145 641 1191 292 Core 257 | 5 . . . 33 . 21 135 63 Treads 3315 | 52 1015 428 596 129 145 620 330 . Legs . | . . . . . . . . . Wheels . | . . . . . . . . . Hover 135 | . . . . . . . 20 115 Flight 820 | . . . . . . . 706 114 Fastest Speed 30 | 50 160 160 160 150 160 100 30 32 Average Speed 129 | 150 160 160 160 162 164 148 77 46 Slowest Speed 400 | 160 160 160 160 400 240 250 350 60 Overloaded Moves . | . . . . . . . . . Propulsion Burnouts . | . . . . . . . . . Robots Hopped 7 | . . . . . . . 6 1 Potential Cave-ins . | . . . . . . . . . Cave-ins Triggered . | . . . . . . . . . Exploration Rate (%) 52 | 4 98 78 74 49 14 78 31 46 Regions Visited 8 Branch Regions 5 Pre-discovered Areas 1 | . . . . . . . . 1 Known Exits Taken 5 | . 1 1 1 1 . 1 . . Unknown Exits Taken 3 | 1 . . . . 1 . 1 . Scrap Searched 4 | . . 1 . 2 . . . 1 Spaces Dug 6 | . 6 . . . . . . . Terrain Destroyed 445 | . 133 . . . . 304 8 . Melee . | . . . . . . . . . Projectile 6 | . 6 . . . . . . . AOE 439 | . 127 . . . . 304 8 . Terrain Rammed . | . . . . . . . . . Walls Destroyed . | . . . . . . . . . Machines Disabled . | . . . . . . . . . Actions | -11 -10 -10 -10 -9 -8 -8 -7 -7 --------- Run | Yrd Mat Min Exi Min Mat Sto Fac Low Total 5713 | 78 1312 565 610 197 155 926 1557 313 Wait 738 | . 206 116 . 14 . 143 242 17 Move 4505 | 56 1014 427 595 161 144 640 1178 290 Hop 7 | . . . . . . . 6 1 Pick Up 51 | 9 12 . 5 1 3 10 10 1 Fast Attach 59 | 6 5 . . 3 5 25 13 2 Attach 19 | 1 . 1 . 1 . 4 10 2 Detach 13 | . 1 . . 2 . 3 7 . Swap 40 | . 14 4 4 2 . 12 4 . Drop 75 | 2 14 . 6 8 3 19 23 . Fire 172 | 4 46 16 . 4 . 70 32 . Melee . | . . . . . . . . . Ram 32 | . . . . . . . 32 . Kick . | . . . . . . . . . Crush 2 | . . 1 . 1 . . . . Escape Stasis . | . . . . . . . . . Rewire . | . . . . . . . . . Trap . | . . . . . . . . . Miscellaneous . | . . . . . . . . . Route ------- -11/Scrapyard -10/Materials (discovered 5 exits: *Mat x3 / *Min / *Sub) -10/Mines (discovered 4 exits: *Mat x2 / *Exi / *Sub) -10/Exiles -9/Mines (discovered 2 exits: *Mat x2) -8/Materials -8/Storage (discovered 2 exits: *Fac / Rec) -7/Factory (discovered 2 exits: [*Fac] / [*Low]) -7/Lower Caves History --------- Turn | Location | Event 10 | -11/Scrapyard | Discovered new exit (range 15) 118 | -11/Scrapyard | Entered Materials 352 | -10/Materials | Build established: Mutant 522 | -10/Materials | Repaired Grenade Launcher 548 | -10/Materials | Repaired Lgt. Treads 587 | -10/Materials | Discovered new exit (range 6) 655 | -10/Materials | Discovered new exit (range 14) 697 | -10/Materials | Identified exit to Materials 843 | -10/Materials | Discovered new exit (range 9) 870 | -10/Materials | Identified exit to Subcaves 1423 | -10/Materials | Discovered exit to Materials (range 16) 1740 | -10/Materials | Discovered exit to Materials (range 5) 2124 | -10/Materials | Identified exit to Mines 2137 | -10/Materials | Entered Mines 2145 | -10/Mines | Discovered exit to Materials (range 7) 2171 | -10/Mines | Met a Derelict bent on vengeance 2185 | -10/Mines | Learned Materials stockpile data 2256 | -10/Mines | Learned Materials terminal intel 2265 | -10/Mines | Assisted by bots powering up and referring to "LRC-V3" 2340 | -10/Mines | Discovered exit to Materials (range 10) 2426 | -10/Mines | Discovered exit to Subcaves (range 10) 2971 | -10/Mines | Deemed a non-threat by the Exiles lab entrance 2971 | -10/Mines | Discovered new exit (range 5) 2978 | -10/Mines | Identified exit to Exiles 2979 | -10/Mines | Entered Exiles 2979 | -10/Exiles | Accompanied by 2 allies 3021 | -10/Exiles | Met 8R-AWN 3083 | -10/Exiles | Met EX-HEX 3199 | -10/Exiles | Met EX-DEC 3288 | -10/Exiles | Met EX-BIN 3308 | -10/Exiles | Aligned with FarCom system 3309 | -10/Exiles | Given EX-Vault access code 3346 | -10/Exiles | Opened EX-Vault 3366 | -10/Exiles | Found Latent Energy Streamer 3397 | -10/Exiles | Warned to stay clear of 0b10 Research branches 3533 | -10/Exiles | Discovered new exit (range 14) 3942 | -10/Exiles | Identified exit to Mines 3945 | -10/Exiles | Left Exiles lab with Latent Energy Streamer 3945 | -10/Exiles | Entered Mines 3945 | -9/Mines | Accompanied by 2 allies 3946 | -9/Mines | Assembled infested the area 3991 | -9/Mines | Core integrity fell below 50% 3999 | -9/Mines | Core integrity fell below 20% 4022 | -9/Mines | Found the Drone Emporium 4029 | -9/Mines | Identified exit to Materials 4039 | -9/Mines | Found Prototype Device 4044 | -9/Mines | Identified Splice Drone Bay 4109 | -9/Mines | Found DCF Scrap (11 items) 4190 | -9/Mines | Discovered exit to Materials (range 14) 4249 | -9/Mines | Entered Materials 4249 | -8/Materials | Evolved 4 slots: Propulsion x2, Utility x2 4251 | -8/Materials | Loaded intel: 12 terminal locations 4412 | -8/Materials | Discovered new exit (range 16) 4497 | -8/Materials | Entered Storage 4754 | -8/Storage | Build established: Skirmisher 4920 | -8/Storage | System corruption reached 10% 4922 | -8/Storage | Destroyed 8 combat bots 4929 | -8/Storage | Lost 3 parts (1p2u) 5180 | -8/Storage | Build established: Mutant 5225 | -8/Storage | Lost 3 parts (1p1u1w) 5328 | -8/Storage | Identified exit to Recycling 5456 | -8/Storage | Identified exit to Factory 5538 | -8/Storage | Repaired Imp. Grenade Launcher 5697 | -8/Storage | First assault squad dispatched 5795 | -8/Storage | Lost 4 parts (1n1u2w) 5837 | -8/Storage | Entered Factory 5837 | -7/Factory | Evolved 2 slots: Propulsion x1, Utility x1 6124 | -7/Factory | Fabricated Component Analysis Suite? 6262 | -7/Factory | Discovered new exit (range 10) 6719 | -7/Factory | Build established: Sprinter 6935 | -7/Factory | System corruption reached 10% 7000 | -7/Factory | Lost 3 parts (2n1w) 7117 | -7/Factory | Build established: Mutant 7139 | -7/Factory | Released all parts (6) 7187 | -7/Factory | Core integrity fell below 50% 7200 | -7/Factory | Discovered new exit (range 15) 7210 | -7/Factory | Entered Lower Caves 7279 | -7/Lower Caves | Attracted the attention of an 0b10 base 7302 | -7/Lower Caves | Core integrity fell below 20% 7370 | -7/Lower Caves | Destroyed by S-27 Virus with Autogun Last Messages --------------- Gravmag System destroyed. S-27 Virus springs to life. Acquired 30 matter. Acquired Cesium-ion Thruster. Acquired 50 matter. Acquired 5 matter. Acquired 1 matter. System corrupted: Energy discharge (-30). System corrupted: Heat flow error (+280). Overheating: Energy bleed (-21). 4/7G=2EV%X8KXOQHI9VN%TEJM,GIHVI=E9VPJZ5 Cesium-ion Thruster destroyed. System corrupted: Component data lost. Searching scrap... Found Mak. Hammer. Found Lrg. Matter Pod. Found Force Booster. Found 62 Matter. Acquired 62 matter. Acquired Mak. Hammer. Map ----- +----------------------------------------------------+ | ?????????????????????????????????????????????????? | | ?????????????????????????????????????????????????? | | ?????????????????????????????????????????????????? | | ?????????????????????????????????????????????????? | | ?????????????????????????????????????????????????? | | ?????????????????????????????????????????????????? | | ?????????????????????????????????????????????????? | | ?????????????????????????????????????????????????? | | ?????????????????????????????????????????????????? | | ?????????????????????????????????????????????????? | | ?????????????????????????????????????????????????? | | ?????????????????????????????????????????????????? | | ?????????????????????????????????????????????????? | | ?????????????????????????????????????????????????? | | ?????????????????????????????????????????????????? | | ?????????????????????????????????????????????????? | | ?????????????????????????????????????????????????? | | ?????????????????????????????????????????????????? | | ???????????????????????######????????????????????? | | ??????????????????????## ##???????????????????? | | ??????????????????????# ##??????????????????? | | ?????????????????????## # #??????????????????? | | ????????????????????## # # ###????????????????? | | ????????????????????# ???????????????? | | ????????????????????# # #??????????????? | | ?????????????????????# @ # #?????????????? | | ?????????????????????#####s #?????????????? | | ????????????????????????##s ####?########??# | | ????????????????????##### ### ###?# | | ????????????????????# ## ## ### | | ????????????????????# ## ## ## | | ???????????# ????# ### # ## ## ### | | ???????????? % ???# ##### ####### ### | | ???????????????# % % % ##! #??## #?????## ## | | ??????????????# % ! #?## #####??## ## | | ??????????????# #####?# ## ##??# ## | | ?????????????# ??????## #### #???# | | ?????????????# ??????## ### #???# | | ????????????? ###???????# ## #???# | | ????????????? ????????????# ## ### ##??# | | ??????????????????????????# #?## ## #??# | | ??????????????????????????## #???# #??# | | ???????????????????????????###????# ##??# | | ??????????????????????????????????## ##???# | | ??????????????????????????????####?# ##????# | | ?????????????????????????????## ### ##?????# | | ????????????????????????????## ## #???#### | | ????????????????????????????# ### ###?# | | ????????????????????????????# #" ### | | ???????????????????????????## ## # | +----------------------------------------------------+ Best States ------------- Heat Dissipation 50 Energy Generation 18 Energy Capacity 250 Matter Stores 386 Matter Capacity 500 Sight Range 16 Terrain Scan Range 16 Terrain Scan Density 110 ECM Strength 2 Armor Coverage 150 Resistance: TH 10 Evasion (%) 64 Targeting Accuracy 14 Target Analysis 5 Recoil Reduction 4 Energy Filtering 30 Force Boost 20 Defensive Hacking 10 Item Schematics ----------------- None Robot Schematics ------------------ None Fabricated ------------ Component Analysis Suite | x2 | -7/Factory | Preloaded Repaired ---------- Lgt. Treads | 44% | -10/Materials Imp. Grenade Launcher | 6% | -8/Storage Studied --------- None Alien Tech Used ----------------- None Achievements -------------- Close Call Just What I Needed Maybe Next Time I'll Detach My Launcher Omniscient Cartographer Significant Disruption Challenges ------------ None Game ------ Seed InertialSiegeGriptreads Manual? 0 Play Time 02:13:11 Cumulative 17.2 hours Start 2026.07.09 @ 13:06:43 End 2026.07.09 @ 15:37:18 Sessions 1 Manual Loads 0 Difficulty Rogue Special Mode None Game No. 23 Rogue 23 Adventurer 0 Explorer 0 Win Type - Total 0 Types 0/0/0/0/0/0/0/0/0/0 Lore% 18 Gallery% 15 Achievement% 14 Wizard Run 0 Options --------- Layout 1 ASCII 0 Keyboard 0 Movement Mouse Keybinds 0 Fullscreen 1 Font 18/SmallcapsGlow Map View 51x41 Zoom Use 0% Tactical HUD 0 Map Filters NONE Filters NONE Steam 1 RUN: af508218-e8a9-402c-bb92-e2b81b289511